lending/lending_fUSD_20240507
["ID","MTS","AMOUNT","RATE_DAILY","PERIOD"]
[326568638,1715112639921,-500.0,0.00019452,2]
[326568640,1715112639931,-500.0,0.00019452,2]
[326568642,1715112639942,-500.0,0.00019452,2]
[326568644,1715112639953,-500.0,0.00019452,2]
[326568646,1715112639963,-500.0,0.00019452,2]
[326568648,1715112639973,-500.0,0.00019452,2]
[326568650,1715112639984,-500.0,0.00019452,2]
[326568652,1715112639994,-500.0,0.00019452,2]
[326568654,1715112640004,-500.0,0.00019452,2]
[326568656,1715112640014,-500.0,0.00019452,2]
[326568658,1715112640024,-500.0,0.00019452,2]
[326568660,1715112640035,-500.0,0.00019452,2]
[326568663,1715112640045,-500.0,0.00019452,2]
[326568665,1715112640056,-500.0,0.00019452,2]
[326568667,1715112640066,-583.94,0.00019452,2]
[326568669,1715112640076,-515.38,0.00019452,2]
[326568671,1715112640087,-500.0,0.00019452,2]
[326568673,1715112640101,-500.0,0.00019452,2]
[326568675,1715112640112,-500.0,0.00019452,2]
[326568677,1715112640122,-500.0,0.00019452,2]
[326568679,1715112640132,-407.04863496,0.00019452,2]
[326568681,1715112640142,-500.0,0.00019452,2]
[326568683,1715112640152,-500.0,0.00019452,2]
[326568685,1715112640163,-500.0,0.00019452,2]
[326568687,1715112640173,-500.0,0.00019452,2]
[326568689,1715112640183,-500.0,0.00019452,2]
[326568691,1715112640193,-500.0,0.00019452,2]
[326568693,1715112640204,-500.0,0.00019452,2]
[326568695,1715112640213,-545.16,0.00019452,2]
[326568697,1715112640224,-500.0,0.00019452,2]
[326568699,1715112640234,-500.0,0.00019452,2]
[326568701,1715112640244,-500.0,0.00019452,2]
[326568703,1715112640254,-500.0,0.00019452,2]
[326568705,1715112640264,-500.0,0.00019452,2]
[326568707,1715112640274,-500.0,0.00019452,2]
[326568709,1715112640285,-500.0,0.00019452,2]
[326568711,1715112640295,-500.0,0.00019452,2]
[326568713,1715112640305,-500.0,0.00019452,2]
[326568715,1715112640316,-500.0,0.00019452,2]
[326568717,1715112640326,-500.0,0.00019452,2]
[326568719,1715112640336,-500.0,0.00019452,2]
[326568721,1715112640346,-591.55,0.00019452,2]
[326568723,1715112640355,-500.0,0.00019452,2]
[326568725,1715112640366,-500.0,0.00019452,2]
[326568727,1715112640376,-500.0,0.00019452,2]
[326568729,1715112640386,-500.0,0.00019452,2]
[326568731,1715112640396,-500.0,0.00019452,2]
[326568733,1715112640406,-500.0,0.00019452,2]
[326568735,1715112640416,-500.0,0.00019452,2]
[326568737,1715112640426,-500.0,0.00019452,2]
[326568739,1715112640436,-500.0,0.00019452,2]
[326568741,1715112640446,-553.89,0.00019452,2]
[326568743,1715112640457,-500.0,0.00019452,2]
[326568745,1715112640467,-500.0,0.00019452,2]
[326568747,1715112640477,-500.0,0.00019452,2]
[326568749,1715112640487,-500.0,0.00019452,2]
[326568751,1715112640501,-500.0,0.00019452,2]
[326568754,1715112640511,-564.56,0.00019452,2]
[326568755,1715112640521,-500.0,0.00019452,2]
[326568758,1715112640531,-500.0,0.00019452,2]
[326568760,1715112640541,-693.75,0.00019452,2]
[326568762,1715112640551,-500.0,0.00019452,2]
[326568764,1715112640561,-500.0,0.00019452,2]
[326568766,1715112640572,-500.0,0.00019452,2]
[326568768,1715112640581,-322.22,0.00019452,2]
[326568770,1715112640592,-538.03,0.00019452,2]
[326568772,1715112640602,-500.0,0.00019452,2]
[326568774,1715112640611,-500.0,0.00019452,2]
[326568776,1715112640621,-543.05594089,0.00019452,2]
[326568778,1715112640631,-500.0,0.00019452,2]
[326568780,1715112640640,-592.34,0.00019452,2]
[326568782,1715112640650,-500.0,0.00019452,2]
[326568784,1715112640660,-500.0,0.00019452,2]
[326568786,1715112640670,-547.6,0.00019452,2]
[326568788,1715112640681,-545.86,0.00019452,2]
[326568790,1715112640694,-177.66702495,0.00019452,2]
[326568792,1715112640704,-500.0,0.00019452,2]
[326568794,1715112640714,-500.0,0.00019452,2]
[326568796,1715112640725,-500.0,0.00019452,2]
[326568798,1715112640736,-500.0,0.00019452,2]
[326568800,1715112640746,-500.0,0.00019452,2]
[326568802,1715112640756,-500.0,0.00019452,2]
[326568804,1715112640768,-500.0,0.00019452,2]
[326568806,1715112640779,-500.0,0.00019452,2]
[326568808,1715112640789,-581.29,0.00019452,2]
[326568810,1715112640799,-520.45,0.00019452,2]
[326568812,1715112640809,-345.83910422,0.00019452,2]
[326568814,1715112640819,-500.0,0.00019452,2]
[326568816,1715112640829,-500.0,0.00019452,2]
[326568818,1715112640839,-653.99,0.00019452,2]
[326568820,1715112640849,-500.0,0.00019452,2]
[326568822,1715112640860,-640.88,0.00019452,2]
[326568824,1715112640869,-500.0,0.00019452,2]
[326568826,1715112640879,-500.0,0.00019452,2]
[326568829,1715112640889,-500.0,0.00019452,2]
[326568831,1715112640899,-524.91,0.00019452,2]
[326568833,1715112640909,-500.0,0.00019452,2]
[326568835,1715112640919,-500.0,0.00019452,2]
[326568837,1715112640929,-393.46692935,0.00019452,2]
[326568839,1715112640939,-500.0,0.00019452,2]
[326568841,1715112640950,-566.66,0.00019452,2]
[326568843,1715112640960,-500.0,0.00019452,2]
[326568845,1715112640970,-500.0,0.00019452,2]
[326568847,1715112640979,-500.0,0.00019452,2]
[326568849,1715112640990,-550.61,0.00019452,2]
[326568851,1715112641000,-500.0,0.00019452,2]
[326568853,1715112641010,-500.0,0.00019452,2]
[326568855,1715112641020,-500.0,0.00019452,2]
[326568857,1715112641030,-500.0,0.00019452,2]
[326568859,1715112641040,-500.0,0.00019452,2]
[326568861,1715112641050,-500.0,0.00019452,2]
[326568863,1715112641060,-500.0,0.00019452,2]
[326568865,1715112641070,-500.0,0.00019452,2]
[326568867,1715112641080,-500.0,0.00019452,2]
[326568869,1715112641089,-500.0,0.00019452,2]
[326568871,1715112641102,-500.0,0.00019452,2]
[326568873,1715112641114,-500.0,0.00019452,2]
[326568875,1715112641123,-500.0,0.00019452,2]
[326568877,1715112641133,-746.34,0.00019452,2]
[326568880,1715112641144,-759.28,0.00019452,2]
[326568882,1715112641154,-526.64,0.00019452,2]
[326568884,1715112641164,-500.0,0.00019452,2]
[326568886,1715112641174,-518.71,0.00019452,2]
[326568888,1715112641183,-500.0,0.00019452,2]
[326568890,1715112641193,-500.0,0.00019452,2]
[326568892,1715112641202,-500.0,0.00019452,2]
[326568894,1715112641212,-500.0,0.00019452,2]
[326568896,1715112641222,-500.0,0.00019452,2]
[326568898,1715112641232,-500.0,0.00019452,2]
[326568900,1715112641242,-500.0,0.00019452,2]
[326568902,1715112641253,-574.9,0.00019452,2]
[326568904,1715112641262,-500.0,0.00019452,2]
[326568906,1715112641273,-500.0,0.00019452,2]
[326568908,1715112641283,-500.0,0.00019452,2]
[326568910,1715112641293,-500.0,0.00019452,2]
[326568912,1715112641303,-500.0,0.00019452,2]
[326568914,1715112641314,-500.0,0.00019452,2]
[326568916,1715112641323,-500.0,0.00019452,2]
[326568918,1715112641333,-500.0,0.00019452,2]
[326568920,1715112641343,-500.0,0.00019452,2]
[326568922,1715112641353,-655.12,0.00019452,2]
[326568924,1715112641363,-520.94,0.00019452,2]
[326568926,1715112641374,-500.0,0.00019452,2]
[326568928,1715112641384,-500.0,0.00019452,2]
[326568930,1715112641394,-500.0,0.00019452,2]
[326568932,1715112641404,-500.0,0.00019452,2]
[326568934,1715112641414,-520.30055484,0.00019452,2]
[326568936,1715112641425,-500.0,0.00019452,2]
[326568938,1715112641434,-8535.41,0.00019452,2]
[326568940,1715112641444,-280.71573674,0.00019452,2]
[326568942,1715112641454,-551.21,0.00019452,2]
[326568944,1715112641464,-500.0,0.00019452,2]
[326568946,1715112641474,-500.0,0.00019452,2]
[326568948,1715112641483,-500.0,0.00019452,2]
[326568950,1715112641493,-635.46,0.00019452,2]
[326568952,1715112641505,-500.0,0.00019452,2]
[326568961,1715112641580,-500.0,0.00019452,2]
[326568963,1715112641590,-817.37,0.00019452,2]
[326568965,1715112641600,-500.0,0.00019452,2]
[326568967,1715112641609,-500.0,0.00019452,2]
[326568969,1715112641619,-479.58714947,0.00019452,2]
[326568971,1715112641628,-679.34,0.00019452,2]
[326568973,1715112641638,-741.95,0.00019452,2]
[326568975,1715112641649,-538.91,0.00019452,2]
[326568977,1715112641659,-500.0,0.00019452,2]
[326568979,1715112641669,-500.0,0.00019452,2]
[326568981,1715112641680,-500.0,0.00019452,2]
[326568983,1715112641694,-742.73,0.00019452,2]
[326568985,1715112641704,-1499.62,0.00019452,2]
[326568987,1715112641713,-500.0,0.00019452,2]
[326568989,1715112641724,-500.0,0.00019452,2]
[326568991,1715112641734,-596.87,0.00019452,2]
[326568993,1715112641744,-500.0,0.00019452,2]
[326568995,1715112641755,-563.45,0.00019452,2]
[326568997,1715112641766,-500.0,0.00019452,2]
[326568999,1715112641775,-320.65026782,0.00019452,2]
[326569001,1715112641785,-459.48996372,0.00019452,2]
[326569002,1715112641796,-500.0,0.00019452,2]
[326569003,1715112641806,-500.0,0.00019452,2]
[326569004,1715112641815,-500.0,0.00019452,2]
[326569005,1715112641825,-1859.16,0.00019452,2]
[326569006,1715112641835,-500.0,0.00019452,2]
[326569007,1715112641845,-634.64,0.00019452,2]
[326569008,1715112641856,-1721.19,0.00019452,2]
[326569009,1715112641865,-500.0,0.00019452,2]
[326569010,1715112641875,-207.42806727,0.00019452,2]
[326569011,1715112641885,-500.0,0.00019452,2]
[326569012,1715112641895,-500.0,0.00019452,2]
[326569013,1715112641906,-500.0,0.00019452,2]
[326569014,1715112641915,-872.3,0.00019452,2]
[326569015,1715112641925,-500.0,0.00019452,2]
[326569016,1715112641934,-500.0,0.00019452,2]
[326569017,1715112641944,-750.53,0.00019452,2]
[326569018,1715112641954,-1529.05,0.00019452,2]
[326569019,1715112641963,-500.0,0.00019452,2]
[326569020,1715112641973,-500.0,0.00019452,2]
[326569021,1715112641983,-6040.75,0.00019452,2]
[326569022,1715112641993,-645.71,0.00019452,2]
[326569023,1715112642004,-4503.0,0.00019452,2]
[326569024,1715112642013,-525.81,0.00019452,2]
[326569025,1715112642024,-694.35,0.00019452,2]
[326569026,1715112642033,-500.0,0.00019452,2]
[326569028,1715112642043,-500.0,0.00019452,2]
[326569029,1715112642053,-500.0,0.00019452,2]
[326569030,1715112642063,-500.0,0.00019452,2]
[326569031,1715112642074,-930.74,0.00019452,2]
[326569032,1715112642084,-500.0,0.00019452,2]
[326569033,1715112642093,-1168.1,0.00019452,2]
[326569034,1715112642105,-609.75,0.00019452,2]
[326569035,1715112642115,-534.38,0.00019452,2]
[326569036,1715112642124,-588.75,0.00019452,2]
[326569037,1715112642134,-500.0,0.00019452,2]
[326569038,1715112642143,-730.48,0.00019452,2]
[326569039,1715112642154,-1340.08,0.00019452,2]
[326569040,1715112642163,-2009.72,0.00019452,2]
[326569041,1715112642173,-500.0,0.00019452,2]
[326569042,1715112642183,-500.0,0.00019452,2]
[326569043,1715112642192,-500.0,0.00019452,2]
[326569044,1715112642202,-1089.23,0.00019452,2]
[326569046,1715112642212,-500.0,0.00019452,2]
[326569048,1715112642222,-500.0,0.00019452,2]
[326569049,1715112642231,-500.0,0.00019452,2]
[326569050,1715112642241,-993.66,0.00019452,2]
[326569051,1715112642252,-500.0,0.00019452,2]
[326569052,1715112642262,-500.0,0.00019452,2]
[326569053,1715112642271,-527.74,0.00019452,2]
[326569054,1715112642280,-11756.49,0.00019452,2]
[326569055,1715112642290,-628.13710075,0.00019452,2]
[326569056,1715112642300,-3722.54,0.00019452,2]
[326569057,1715112642310,-500.0,0.00019452,2]
[326569058,1715112642319,-500.0,0.00019452,2]
[326569059,1715112642329,-667.51,0.00019452,2]
[326569060,1715112642338,-500.0,0.00019452,2]
[326569061,1715112642348,-500.0,0.00019452,2]
[326569062,1715112642358,-774.83,0.00019452,2]
[326569063,1715112642367,-500.0,0.00019452,2]
[326569064,1715112642378,-1205.55,0.00019452,2]
[326569065,1715112642388,-934.07,0.00019452,2]
[326569066,1715112642398,-500.0,0.00019452,2]
[326569067,1715112642408,-1195.88,0.00019452,2]
[326569068,1715112642417,-748.59,0.00019452,2]
[326569069,1715112642427,-500.0,0.00019452,2]
[326569070,1715112642438,-500.0,0.00019452,2]
[326569071,1715112642447,-2150.59,0.00019452,2]
[326569072,1715112642457,-611.65,0.00019452,2]
[326569073,1715112642467,-500.0,0.00019452,2]
[326569074,1715112642477,-500.0,0.00019452,2]
[326569075,1715112642486,-866.75,0.00019452,2]
[326569076,1715112642498,-1537.83,0.00019452,2]
[326569077,1715112642507,-500.0,0.00019452,2]
[326569078,1715112642517,-500.0,0.00019452,2]
[326569079,1715112642526,-500.0,0.00019452,2]
[326569080,1715112642535,-646.73,0.00019452,2]
[326569081,1715112642545,-1376.28,0.00019452,2]
[326569082,1715112642554,-500.0,0.00019452,2]
[326569083,1715112642564,-500.0,0.00019452,2]
[326569084,1715112642573,-500.0,0.00019452,2]
[326569085,1715112642583,-500.0,0.00019452,2]
[326569086,1715112642593,-5743.86,0.00019452,2]
[326569087,1715112642603,-500.0,0.00019452,2]
[326569088,1715112642613,-2279.88,0.00019452,2]
[326569089,1715112642623,-500.0,0.00019452,2]
[326569090,1715112642633,-847.41,0.00019452,2]
[326569091,1715112642643,-612.85,0.00019452,2]
[326569092,1715112642653,-500.0,0.00019452,2]
[326569093,1715112642663,-896.21,0.00019452,2]
[326569094,1715112642673,-500.0,0.00019452,2]
[326569095,1715112642686,-500.0,0.00019452,2]
[326569096,1715112642696,-589.41,0.00019452,2]
[326569097,1715112642706,-500.0,0.00019452,2]
[326569098,1715112642718,-662.75,0.00019452,2]
[326569099,1715112642729,-788.25,0.00019452,2]
[326569100,1715112642739,-500.0,0.00019452,2]
[326569101,1715112642750,-646.27,0.00019452,2]
[326569102,1715112642761,-500.0,0.00019452,2]
[326569103,1715112642770,-629.25,0.00019452,2]
[326569105,1715112642780,-933.26,0.00019452,2]
[326569106,1715112642790,-500.0,0.00019452,2]
[326569108,1715112642800,-826.00313164,0.00019452,2]
[326569111,1715112642821,-1020.42686836,0.00019452,2]
[326569114,1715112642831,-500.0,0.00019452,2]
[326569115,1715112642841,-500.0,0.00019452,2]
[326569117,1715112642851,-500.0,0.00019452,2]
[326569120,1715112642861,-500.0,0.00019452,2]
[326569123,1715112642870,-500.0,0.00019452,2]
[326569125,1715112642880,-500.0,0.00019452,2]
[326569127,1715112642890,-764.74,0.00019452,2]
[326569128,1715112642899,-1385.44,0.00019452,2]
[326569129,1715112642909,-500.0,0.00019452,2]
[326569130,1715112642919,-1518.55,0.00019452,2]
[326569131,1715112642929,-500.0,0.00019452,2]
[326569132,1715112642938,-500.0,0.00019452,2]
[326569133,1715112642948,-1534.29,0.00019452,2]
[326569134,1715112642958,-500.0,0.00019452,2]
[326569135,1715112642968,-500.0,0.00019452,2]
[326569136,1715112642978,-500.0,0.00019452,2]
[326569137,1715112642988,-500.0,0.00019452,2]
[326569138,1715112642998,-995.34,0.00019452,2]
[326569139,1715112643007,-521.09159986,0.00019452,2]
[326569140,1715112643017,-500.0,0.00019452,2]
[326569141,1715112643027,-1796.45,0.00019452,2]
[326569142,1715112643037,-2482.04,0.00019452,2]
[326569143,1715112643047,-500.0,0.00019452,2]
[326569144,1715112643057,-500.0,0.00019452,2]
[326569145,1715112643066,-500.0,0.00019452,2]
[326569146,1715112643076,-1143.63,0.00019452,2]
[326569147,1715112643086,-500.0,0.00019452,2]
[326569148,1715112643096,-1253.68,0.00019452,2]
[326569149,1715112643110,-793.52,0.00019452,2]
[326569150,1715112643119,-790.82,0.00019452,2]
[326569151,1715112643129,-500.0,0.00019452,2]
[326569152,1715112643139,-821.22,0.00019452,2]
[326569153,1715112643149,-766.45,0.00019452,2]
[326569154,1715112643158,-500.0,0.00019452,2]
[326569155,1715112643168,-500.0,0.00019452,2]
[326569156,1715112643178,-1140.07,0.00019452,2]
[326569157,1715112643187,-2261.2,0.00019452,2]
[326569158,1715112643197,-699.33,0.00019452,2]
[326569159,1715112643207,-1639.33,0.00019452,2]
[326569160,1715112643217,-500.0,0.00019452,2]
[326569161,1715112643227,-500.0,0.00019452,2]
[326569162,1715112643237,-708.47,0.00019452,2]
[326569163,1715112643247,-500.0,0.00019452,2]
[326569164,1715112643256,-500.0,0.00019452,2]
[326569165,1715112643266,-7581.08,0.00019452,2]
[326569166,1715112643276,-500.0,0.00019452,2]
[326569167,1715112643286,-500.0,0.00019452,2]
[326569168,1715112643296,-657.3,0.00019452,2]
[326569169,1715112643305,-1442.6,0.00019452,2]
[326569170,1715112643316,-1570.85,0.00019452,2]
[326569171,1715112643325,-500.0,0.00019452,2]
[326569172,1715112643335,-952.83,0.00019452,2]
[326569173,1715112643346,-965.64,0.00019452,2]
[326569174,1715112643356,-500.0,0.00019452,2]
[326569175,1715112643366,-500.0,0.00019452,2]
[326569176,1715112643376,-500.0,0.00019452,2]
[326569177,1715112643385,-500.0,0.00019452,2]
[326569178,1715112643395,-500.0,0.00019452,2]
[326569179,1715112643405,-500.0,0.00019452,2]
[326569180,1715112643415,-686.32,0.00019452,2]
[326569181,1715112643426,-701.99,0.00019452,2]
[326569182,1715112643435,-1115.15,0.00019452,2]
[326569183,1715112643446,-1673.46,0.00019452,2]
[326569184,1715112643456,-500.0,0.00019452,2]
[326569185,1715112643466,-500.0,0.00019452,2]
[326569186,1715112643476,-771.11,0.00019452,2]
[326569187,1715112643487,-521.16,0.00019452,2]
[326569188,1715112643498,-628.86,0.00019452,2]
[326569189,1715112643508,-1036.35,0.00019452,2]
[326569190,1715112643518,-500.0,0.00019452,2]
[326569191,1715112643528,-756.07,0.00019452,2]
[326569192,1715112643538,-651.67,0.00019452,2]
[326569193,1715112643548,-500.43,0.00019452,2]
[326569194,1715112643559,-607.71,0.00019452,2]
[326569195,1715112643569,-616.16,0.00019452,2]
[326569196,1715112643579,-2812.26,0.00019452,2]
[326569197,1715112643589,-2456.97,0.00019452,2]
[326569198,1715112643599,-500.0,0.00019452,2]
[326569199,1715112643611,-500.0,0.00019452,2]
[326569200,1715112643621,-500.0,0.00019452,2]
[326569201,1715112643631,-914.95,0.00019452,2]
[326569202,1715112643642,-1095.21,0.00019452,2]
[326569203,1715112643651,-563.44,0.00019452,2]
[326569204,1715112643662,-1077.98,0.00019452,2]
[326569205,1715112643672,-984.26,0.00019452,2]
[326569206,1715112643685,-579.82,0.00019452,2]
[326569207,1715112643695,-1344.85,0.00019452,2]
[326569208,1715112643705,-756.02,0.00019452,2]
[326569209,1715112643715,-1381.3341058,0.00019452,2]
[326569210,1715112644005,-316.62,0.00019452,2]
[326569211,1715112644325,-468.67992952,0.00019176,2]
[326569212,1715112644337,-66.1176697,0.00019176,2]
[326569213,1715112644347,-194.66538068,0.00019177,2]
[326569214,1715112644358,-405.21355048,0.00019177,2]
[326569215,1715112644368,-190.8258942,0.00019452,2]
[326569216,1715112644378,-201.69806935,0.00019452,2]
[326569217,1715112644390,-1064.36232487,0.00019452,2]
[326569218,1715112644402,-470.43452776,0.00019452,2]
[326569219,1715112644415,-253.56507802,0.00019452,2]
[326569220,1715112644425,-500.0,0.00019452,2]
[326569221,1715112644436,-398.61248997,0.00019452,2]
[326569222,1715112644446,-696.89,0.00019452,2]
[326569223,1715112644456,-1476.96,0.00019452,2]
[326569224,1715112644467,-500.0,0.00019452,2]
[326569225,1715112644476,-1887.08233261,0.00019452,2]
[326569226,1715112644489,-681.33262632,0.00019452,2]
[326569227,1715112644506,-618.09504107,0.00019452,2]
[326569228,1715112644516,-57.14009425,0.00019452,2]
[326569229,1715112644529,-442.85990575,0.00019452,2]
[326569230,1715112644539,-737.67,0.00019452,2]
[326569231,1715112644550,-500.0,0.00019452,2]
[326569232,1715112644560,-361.77678118,0.00019576,2]
[326569233,1715112644570,-294.03238731,0.00019626,2]
[326569234,1715112644580,-3391.32038453,0.00019675,2]
[326569235,1715112644592,-333.77102272,0.00019675,2]
[326569236,1715112644605,-480.1245819,0.00019675,2]
[326569237,1715112644615,-196.1,0.00019686,3]
[326569238,1715112644625,-343.00841813,0.00019712,2]
[326569239,1715112644637,-375.80158187,0.00019712,2]
[326569240,1715112644647,-230.97826612,0.00019725,2]
[326569241,1715112644659,-769.02173388,0.00019725,2]
[326569242,1715112644669,-16.26270012,0.00019725,2]
[326569243,1715112644683,-677.21729988,0.00019725,2]
[326569244,1715112644694,-500.0,0.00019726,2]
[326569245,1715112644704,-500.0,0.00019726,2]
[326569246,1715112644714,-500.0,0.00019726,2]
[326569247,1715112644725,-500.0,0.00019726,2]
[326569248,1715112644735,-500.0,0.00019726,2]
[326569249,1715112644745,-500.0,0.00019726,2]
[326569250,1715112644757,-500.0,0.00019726,2]
[326569251,1715112644769,-500.0,0.00019726,2]
[326569252,1715112644779,-177.87911138,0.00019726,2]
[326569253,1715112644791,-322.12088862,0.00019726,2]
[326569254,1715112644801,-482.16911138,0.00019726,2]
[326569255,1715112645028,-569.00557054,0.00019177,2]
[326569256,1715112645038,-155.45749735,0.0001945,2]
[326569257,1715112645049,-17.83088862,0.00019726,2]
[326569258,1715112645059,-500.0,0.00019726,2]
[326569259,1715112645069,-500.0,0.00019726,2]
[326569260,1715112645080,-500.0,0.00019726,2]
[326569261,1715112645093,-500.0,0.00019726,2]
[326569262,1715112645107,-500.0,0.00019726,2]
[326569263,1715112645118,-500.0,0.00019726,2]
[326569264,1715112645129,-500.0,0.00019726,2]
[326569265,1715112645141,-500.0,0.00019726,2]
[326569266,1715112645152,-500.0,0.00019726,2]
[326569267,1715112645162,-500.0,0.00019726,2]
[326569268,1715112645172,-518.2,0.00019726,2]
[326569269,1715112645183,-500.0,0.00019726,2]
[326569270,1715112645193,-500.0,0.00019726,2]
[326569271,1715112645204,-442.56164324,0.00019726,2]
[326569272,1715112645214,-500.0,0.00019726,2]
[326569273,1715112645225,-500.0,0.00019726,2]
[326569274,1715112645235,-500.0,0.00019726,2]
[326569275,1715112645246,-500.0,0.00019726,2]
[326569276,1715112645257,-500.0,0.00019726,2]
[326569277,1715112645268,-500.0,0.00019726,2]
[326569278,1715112645278,-500.0,0.00019726,2]
[326569279,1715112645289,-500.0,0.00019726,2]
[326569280,1715112645300,-500.0,0.00019726,2]
[326569281,1715112645310,-500.0,0.00019726,2]
[326569282,1715112645320,-500.0,0.00019726,2]
[326569283,1715112645331,-500.0,0.00019726,2]
[326569284,1715112645342,-500.0,0.00019726,2]
[326569285,1715112645353,-500.0,0.00019726,2]
[326569286,1715112645363,-401.00942502,0.00019726,2]
[326569287,1715112645374,-500.0,0.00019726,2]
[326569288,1715112645384,-583.94,0.00019726,2]
[326569289,1715112645395,-515.38,0.00019726,2]
[326569290,1715112645406,-500.0,0.00019726,2]
[326569291,1715112645416,-500.0,0.00019726,2]
[326569292,1715112645427,-500.0,0.00019726,2]
[326569293,1715112645437,-500.0,0.00019726,2]
[326569294,1715112645448,-500.0,0.00019726,2]
[326569295,1715112645458,-500.0,0.00019726,2]
[326569296,1715112645469,-500.0,0.00019726,2]
[326569297,1715112645480,-500.0,0.00019726,2]
[326569298,1715112645491,-500.0,0.00019726,2]
[326569299,1715112645501,-500.0,0.00019726,2]
[326569300,1715112645512,-500.0,0.00019726,2]
[326569301,1715112645522,-545.16,0.00019726,2]
[326569302,1715112645533,-500.0,0.00019726,2]
[326569303,1715112645543,-500.0,0.00019726,2]
[326569304,1715112645553,-500.0,0.00019726,2]
[326569305,1715112645564,-500.0,0.00019726,2]
[326569306,1715112645574,-500.0,0.00019726,2]
[326569307,1715112645585,-500.0,0.00019726,2]
[326569308,1715112645596,-500.0,0.00019726,2]
[326569309,1715112645606,-500.0,0.00019726,2]
[326569310,1715112645617,-500.0,0.00019726,2]
[326569311,1715112645627,-500.0,0.00019726,2]
[326569312,1715112645638,-500.0,0.00019726,2]
[326569313,1715112645648,-500.0,0.00019726,2]
[326569314,1715112645659,-591.55,0.00019726,2]
[326569315,1715112645669,-500.0,0.00019726,2]
[326569316,1715112645681,-500.0,0.00019726,2]
[326569317,1715112645692,-500.0,0.00019726,2]
[326569318,1715112645702,-500.0,0.00019726,2]
[326569319,1715112645712,-371.61366372,0.00019726,2]
[326569320,1715112645723,-500.0,0.00019726,2]
[326569321,1715112645733,-500.0,0.00019726,2]
[326569322,1715112645744,-500.0,0.00019726,2]
[326569323,1715112645755,-500.0,0.00019726,2]
[326569324,1715112645768,-553.89,0.00019726,2]
[326569325,1715112645780,-500.0,0.00019726,2]
[326569326,1715112645791,-500.0,0.00019726,2]
[326569327,1715112645801,-500.0,0.00019726,2]
[326569328,1715112645812,-500.0,0.00019726,2]
[326569329,1715112645823,-500.0,0.00019726,2]
[326569330,1715112645835,-564.56,0.00019726,2]
[326569331,1715112645845,-500.0,0.00019726,2]
[326569332,1715112645856,-500.0,0.00019726,2]
[326569333,1715112645867,-693.75,0.00019726,2]
[326569334,1715112645878,-500.0,0.00019726,2]
[326569335,1715112645888,-500.0,0.00019726,2]
[326569336,1715112645900,-500.0,0.00019726,2]
[326569337,1715112645910,-322.22,0.00019726,2]
[326569338,1715112645921,-538.03,0.00019726,2]
[326569339,1715112645933,-500.0,0.00019726,2]
[326569340,1715112645945,-500.0,0.00019726,2]